bitfinex/quotes_ETHUSD_20251110
["timestamp","ask_amount","ask_price","bid_price","bid_amount"]
[1762747090662,5.38392372,3631.2,3630.1,0.01]
[1762747090866,3.2272174,3630.4,3630.1,0.01]
[1762747091171,5.96493057,3630.4,3630.1,0.01]
[1762747091386,6.04153057,3630.4,3630.1,0.01]
[1762747094455,4.74359944,3630.4,3630.1,0.01]
[1762747094655,3.56048744,3630.4,3630.1,0.01]
[1762747095252,3.48388744,3630.4,3630.1,0.01]
[1762747095651,3.01118744,3630.4,3630.1,0.01]
[1762747095859,3.01118744,3630.4,3630.3,0.4917]
[1762747096271,0.25667004,3630.4,3630.3,0.4917]
[1762747096872,3.01118744,3630.4,3630.3,0.4917]
[1762747097266,0.25667004,3630.4,3630.3,0.001]
[1762747097468,3.01118744,3630.4,3630.3,0.001]
[1762747098591,3.01118744,3630.4,3630.3,0.4917]
[1762747098592,0.25667004,3630.4,3630.3,0.4917]
[1762747099814,0.25667004,3630.4,3630.3,0.9794]
[1762747100198,3.01118744,3630.4,3630.3,0.4917]
[1762747100500,0.25667004,3630.4,3630.3,0.4917]
[1762747101812,3.01118744,3630.4,3630.3,0.4917]
[1762747102219,0.25667004,3630.4,3630.3,0.4917]
[1762747103191,3.01118744,3630.4,3630.3,0.001]
[1762747103512,0.25667004,3630.4,3630.3,0.001]
[1762747104029,3.01118744,3630.4,3630.3,0.001]
[1762747104329,3.08168744,3630.4,3630.3,0.001]
[1762747104919,3.55638744,3630.4,3630.3,0.001]
[1762747105126,0.25667004,3630.4,3630.3,4.13459728]
[1762747105278,0.25667004,3630.4,3630.3,9.09493988]
[1762747105478,0.1376,3630.9,3630.6,0.405504]
[1762747105691,0.1376,3630.9,3630.8,0.4831]
[1762747105897,0.39451675,3630.9,3630.8,0.4831]
[1762747106093,0.39451675,3630.9,3630.8,0.9735]
[1762747106720,2.7545174,3630.4,3630.3,0.001]
[1762747106931,4.99794615,3630.4,3630.3,0.001]
[1762747107139,6.04214712,3630.4,3630.3,0.001]
[1762747107914,5.38014712,3630.4,3630.3,0.001]
[1762747108119,6.04214712,3630.4,3630.3,0.001]
[1762747109407,6.04202961,3630.4,3630.3,0.001]
[1762747115043,5.38002961,3630.4,3630.3,0.001]
[1762747115214,6.04102961,3630.4,3630.3,0.001]
[1762747115717,5.38002961,3630.4,3630.3,0.001]
[1762747115917,5.49482961,3630.4,3630.3,0.001]
[1762747116242,3.01131664,3630.4,3630.3,0.9745]
[1762747117143,0.25679924,3630.4,3630.3,0.9745]
[1762747118129,0.1376,3630.5,3630.3,0.9745]
[1762747118432,0.25713776,3630.4,3630.3,0.4841]
[1762747118639,0.25713776,3630.4,3630.3,0.001]
[1762747118840,0.25713776,3630.4,3630.3,0.9745]
[1762747119340,3.01165516,3630.4,3630.3,0.9745]
[1762747119522,0.25713776,3630.4,3630.3,0.9745]
[1762747120066,3.01165516,3630.4,3630.3,0.9745]
[1762747120717,0.25713776,3630.4,3630.3,0.9745]
[1762747120911,3.01165516,3630.4,3630.3,0.9745]
[1762747121833,0.25713776,3630.4,3630.3,1.380004]
[1762747122028,0.25713776,3630.4,3630.3,4.43009768]
[1762747122429,0.25713776,3630.4,3630.3,1.6755044]
[1762747123356,0.25713776,3630.4,3630.3,5.5255044]
[1762747124168,0.002,3630.7,3630.4,0.405504]
[1762747124169,2.75635743,3630.7,3630.4,0.405504]
[1762747124366,0.002,3630.7,3630.6,0.888604]
[1762747124540,0.25911433,3630.7,3630.6,0.888604]
[1762747124745,0.25911433,3630.7,3630.6,1.379004]
[1762747125479,3.01340413,3630.7,3630.6,1.379004]
[1762747126280,0.25911433,3630.7,3630.6,1.379004]
[1762747126847,3.01340413,3630.7,3630.6,0.4831]
[1762747127052,3.15100413,3630.7,3630.6,0.4831]
[1762747127974,3.15100413,3630.7,3630.6,0.9497]
[1762747128473,3.15100413,3630.7,3630.6,0.4831]
[1762747129032,2.75444153,3630.5,3630.4,3.85]
[1762747129367,3.01155586,3630.5,3630.4,3.85]
[1762747129567,3.01155586,3630.5,3630.4,4.3343]
[1762747129939,3.01155586,3630.5,3630.4,4.8009]
[1762747130260,0.25711433,3630.5,3630.4,4.8009]
[1762747130868,3.01155586,3630.5,3630.4,4.3343]
[1762747131490,3.09865586,3630.5,3630.4,3.85]
[1762747131768,3.01155586,3630.5,3630.4,3.85]
[1762747131974,0.25711433,3630.5,3630.4,4.8009]
[1762747132671,0.39471433,3630.5,3630.4,4.8009]
[1762747133030,0.39471433,3630.5,3630.4,5.206404]
[1762747133248,0.25711433,3630.5,3630.4,5.70976875]
[1762747133735,0.25711433,3630.5,3630.4,5.206404]
[1762747135473,0.34421433,3630.5,3630.4,0.405504]
[1762747135649,4.47328116,3630.2,3630.1,1e-08]
[1762747135850,5.29425124,3630.2,3630.1,1e-08]
[1762747136054,5.38445124,3630.2,3630.1,1e-08]
[1762747139592,6.04545124,3630.2,3630.1,1e-08]
[1762747140358,5.38445124,3630.2,3630.1,1e-08]
[1762747140545,6.04545124,3630.2,3630.1,1e-08]
[1762747142256,5.38445124,3630.2,3630.1,1e-08]
[1762747142455,6.04545124,3630.2,3630.1,1e-08]
[1762747142756,6.04445124,3630.2,3630.1,1e-08]
[1762747146475,9.25471252,3630.2,3630.1,1e-08]
[1762747146759,10.00591252,3630.2,3630.1,1e-08]
[1762747148348,4.15205704,3630.1,3630.0,0.001]
[1762747148657,5.52212712,3630.1,3630.0,0.001]
[1762747149378,6.18212712,3630.1,3630.0,0.001]
[1762747153592,4.97302712,3630.1,3630.0,0.001]
[1762747153883,5.63302712,3630.1,3630.0,0.001]
[1762747154774,5.58662712,3630.1,3630.0,0.001]
[1762747154985,6.03982712,3630.1,3630.0,0.001]
[1762747155855,5.58662712,3630.1,3630.0,0.001]
[1762747156385,6.03982712,3630.1,3630.0,0.001]
[1762747156862,5.58662712,3630.1,3630.0,0.001]
[1762747160374,0.82097008,3630.1,3630.0,0.9557]
[1762747160574,0.25711433,3630.1,3630.0,0.9557]
[1762747160775,0.39471433,3630.1,3630.0,0.9557]
[1762747161753,0.25711433,3630.1,3630.0,1.361204]
[1762747162195,0.25711433,3630.1,3630.0,2.06217179]
[1762747163484,0.25711433,3630.1,3630.0,0.9557]
[1762747163661,3.01185937,3630.1,3630.0,0.9557]
[1762747166067,3.01185937,3630.1,3630.0,0.001]
[1762747166713,3.10965937,3630.1,3630.0,0.001]
[1762747166916,3.67162076,3630.1,3630.0,0.001]
[1762747167472,4.11932076,3630.1,3630.0,0.001]
[1762747168088,5.37903276,3630.1,3630.0,0.001]
[1762747169230,9.13725774,3630.1,3630.0,0.001]
[1762747169377,2.75482093,3630.0,3629.9,0.001]
[1762747169576,4.78189665,3630.0,3629.9,0.001]
[1762747170840,4.23189665,3630.0,3629.9,0.001]
[1762747171430,4.23289665,3630.0,3629.9,0.4879]
[1762747173236,4.23289665,3630.0,3629.9,0.001]
[1762747175936,4.23189665,3630.0,3629.9,0.4879]
[1762747176717,5.49160865,3630.0,3629.9,0.4879]
[1762747177231,4.83360865,3630.0,3629.9,0.4879]
[1762747177430,5.49160865,3630.0,3629.9,0.4879]
[1762747178002,5.59290865,3630.0,3629.9,0.001]
[1762747178538,5.49160865,3630.0,3629.9,0.001]
[1762747179235,5.59630865,3630.0,3629.9,0.001]
[1762747180742,5.49160865,3630.0,3629.9,0.001]
[1762747180902,5.59630865,3630.0,3629.9,0.001]
[1762747181441,5.49160865,3630.0,3629.9,0.001]
[1762747184071,4.83360865,3630.0,3629.9,0.001]
[1762747184342,5.48960865,3630.0,3629.9,0.001]
[1762747185420,5.59430865,3630.0,3629.9,0.001]
[1762747186563,5.48960865,3630.0,3629.9,0.001]
[1762747189937,5.59770865,3630.0,3629.9,0.001]
[1762747190125,5.48960865,3630.0,3629.9,0.001]
[1762747190522,5.49160865,3630.0,3629.9,0.001]
[1762747191123,5.59970865,3630.0,3629.9,0.001]
[1762747191326,6.03720865,3630.0,3629.9,0.001]
[1762747191544,5.59970865,3630.0,3629.9,0.001]
[1762747194213,2.75504862,3629.7,3629.6,0.001]
[1762747194417,5.48883634,3629.7,3629.6,0.001]
[1762747196050,5.54703634,3629.7,3629.6,0.001]
[1762747196349,5.48883634,3629.7,3629.6,0.001]
[1762747196746,5.48883634,3629.7,3629.6,0.4761]
[1762747197471,5.48883634,3629.7,3629.6,0.9718]
[1762747197679,4.83383634,3629.7,3629.6,0.4761]
[1762747198379,4.83383634,3629.7,3629.6,0.9718]
[1762747199180,4.83383634,3629.7,3629.6,0.4761]
[1762747199561,4.83383634,3629.7,3629.6,0.001]
[1762747199758,4.83383634,3629.7,3629.6,0.4761]
[1762747201346,4.83383634,3629.7,3629.6,0.9718]
[1762747201544,5.48783634,3629.7,3629.6,0.4761]
[1762747201746,5.48783634,3629.7,3629.6,0.001]
[1762747202383,4.83383634,3629.7,3629.6,0.9718]
[1762747202890,5.48783634,3629.7,3629.6,0.9718]
[1762747203242,4.83383634,3629.7,3629.6,0.9718]
[1762747203448,3.57412434,3629.7,3629.6,0.9718]
[1762747203859,3.64182434,3629.7,3629.6,0.001]
[1762747204403,5.37893634,3629.7,3629.6,0.001]
[1762747204576,4.90153634,3629.7,3629.6,0.001]
[1762747204979,5.37893634,3629.7,3629.6,0.001]
[1762747205818,4.90153634,3629.7,3629.6,0.001]
[1762747206388,4.83383634,3629.7,3629.6,0.001]
[1762747207318,4.83383634,3629.7,3629.6,0.9718]
[1762747207319,5.48783634,3629.7,3629.6,0.9718]
[1762747207709,4.83383634,3629.7,3629.6,0.9718]
[1762747208006,3.57412434,3629.7,3629.6,0.9718]
[1762747210126,6.50478622,3629.7,3629.6,0.9718]
[1762747211801,3.57412434,3629.7,3629.6,4.8218]
[1762747212440,6.57248622,3629.7,3629.6,3.851]
[1762747212622,6.50478622,3629.7,3629.6,3.851]
[1762747212823,6.57658622,3629.7,3629.6,3.851]
[1762747213030,7.23058622,3629.7,3629.6,3.851]
[1762747213712,7.15878622,3629.7,3629.6,0.001]
[1762747214332,7.15878622,3629.7,3629.6,0.4761]
[1762747214333,4.22812434,3629.7,3629.6,0.4761]
[1762747214639,4.22812434,3629.7,3629.6,0.9718]
[1762747215407,3.57412434,3629.7,3629.6,0.9718]
[1762747215875,3.57412434,3629.7,3629.6,0.4761]
[1762747216521,3.57412434,3629.7,3629.6,0.9718]
[1762747216707,3.57412434,3629.7,3629.6,0.4761]
[1762747217722,3.57412434,3629.7,3629.6,0.9718]
[1762747220123,3.57412434,3629.7,3629.6,0.4761]
[1762747220742,3.57412434,3629.7,3629.6,0.9718]
[1762747223425,3.57412434,3629.7,3629.6,0.4761]
[1762747223932,3.64182434,3629.7,3629.6,0.001]
[1762747224240,4.29582434,3629.7,3629.6,0.001]
[1762747224957,4.22812434,3629.7,3629.6,0.001]
[1762747225564,4.22812434,3629.7,3629.6,0.4783]
[1762747225973,4.22812434,3629.7,3629.6,0.9602]
[1762747227976,0.81907572,3629.7,3629.6,0.9602]
[1762747228291,3.57412434,3629.7,3629.6,0.9602]
[1762747228603,4.02872434,3629.7,3629.6,0.001]
[1762747228905,3.57412434,3629.7,3629.6,0.4783]
[1762747229456,3.57412434,3629.7,3629.6,0.9602]
[1762747231027,0.81907572,3629.7,3629.6,0.9602]
[1762747231517,3.57412434,3629.7,3629.6,0.9602]
[1762747232408,3.57412434,3629.7,3629.6,4.8102]
[1762747233902,0.81907572,3629.7,3629.6,4.8102]
[1762747234281,0.25711433,3629.7,3629.6,5.29142]
[1762747236879,0.25711433,3629.7,3629.6,4.8102]
[1762747239077,3.01216295,3629.7,3629.6,4.8102]
[1762747239407,3.01216295,3629.7,3629.6,4.3283]
[1762747240519,3.01216295,3629.7,3629.6,4.8102]
[1762747241774,3.62937822,3629.7,3629.6,3.851]
[1762747242726,3.57597822,3629.7,3629.6,4.3283]
[1762747242922,3.01216295,3629.7,3629.6,4.8102]
[1762747243226,3.57597813,3629.7,3629.6,4.3283]
[1762747245096,7.24685987,3629.7,3629.6,3.851]
[1762747246297,11.63245361,3629.7,3629.6,0.001]
[1762747246497,4.01483653,3629.6,3629.5,0.001]
[1762747246714,5.99086443,3629.6,3629.5,0.001]
[1762747247353,5.49476443,3629.6,3629.5,0.001]
[1762747247641,5.49476443,3629.6,3629.5,0.9602]
[1762747247642,3.57615243,3629.6,3629.5,0.9602]
[1762747247930,3.57615243,3629.6,3629.5,0.4658]
[1762747251355,0.8210279,3629.6,3629.5,0.4658]
[1762747251512,3.01223886,3629.6,3629.5,0.9221]
[1762747251711,3.57615243,3629.6,3629.5,0.4658]
[1762747253082,0.8210279,3629.6,3629.5,0.4658]
[1762747253244,0.25711433,3629.6,3629.5,7.93280444]
[1762747253544,0.25711433,3629.6,3629.5,6.55920135]
[1762747253714,0.25711433,3629.6,3629.5,5.177604]
[1762747254858,2.75676394,3630.1,3629.5,5.177604]
[1762747254859,2.4943974,3630.1,3630.0,0.4515]
[1762747255026,3.05510175,3630.1,3630.0,0.4515]
[1762747256048,3.12310175,3630.1,3629.6,0.405504]
[1762747256356,2.75482093,3630.0,3629.6,0.874604]
[1762747256653,2.75482093,3630.0,3629.7,0.4726604]
[1762747256865,2.75482093,3630.0,3629.9,0.4515]
[1762747257470,2.75497272,3629.8,3629.7,0.4726604]
[1762747257673,2.75512453,3629.6,3629.5,0.001]
[1762747257871,3.12588174,3630.1,3629.7,0.4515]
[1762747258062,2.75497272,3629.8,3629.7,0.4515]
[1762747258260,2.75512453,3629.6,3629.5,0.001]
[1762747258775,2.75512453,3629.6,3629.5,0.4525]
[1762747259873,0.4691,3629.9,3629.5,0.9216]
[1762747260048,2.75504428,3629.8,3629.5,0.4701]
[1762747260255,2.75504428,3629.8,3629.5,0.001]
[1762747260454,4.24898174,3630.2,3629.5,0.4701]
[1762747260748,2.75509868,3629.7,3629.5,0.4701]
[1762747260947,2.75512453,3629.6,3629.5,0.4701]
[1762747261173,2.75512453,3629.6,3629.5,0.001]
[1762747261378,2.75512453,3629.6,3629.5,0.4525]
[1762747261750,6.44169199,3629.6,3629.5,0.001]
[1762747262076,2.75501449,3629.8,3629.5,0.9216]
[1762747262275,2.75501449,3629.8,3629.7,0.4515]
[1762747262575,5.88248725,3630.3,3629.7,0.4515]
[1762747262775,2.75480003,3630.1,3629.9,0.4515]
[1762747262978,0.002,3630.3,3629.8,0.4691]
[1762747263163,0.1396,3630.3,3630.2,0.6396]
[1762747263678,0.1396,3630.3,3630.2,1.1087]
[1762747264264,2.89419328,3630.3,3630.2,1.1087]
[1762747264659,2.89419328,3630.3,3630.2,0.4515]
[1762747264850,0.1396,3630.3,3630.2,0.4515]
[1762747265365,0.1396,3630.3,3630.2,0.9206]
[1762747266785,0.39730488,3630.3,3630.2,0.9206]
[1762747267549,0.39730488,3630.3,3630.2,4.7706]
[1762747267750,0.39730488,3630.3,3630.2,5.26647]
[1762747268491,0.25970488,3630.3,3630.2,5.26647]
[1762747270281,0.25970488,3630.3,3630.2,8.45418985]
[1762747270477,0.25970488,3630.3,3630.2,8.42664316]
[1762747270854,0.25970488,3630.3,3630.2,8.68634804]
[1762747271054,0.25970488,3630.3,3630.2,9.09377239]
[1762747271267,0.25970488,3630.3,3630.2,8.68634804]
[1762747271998,0.25970488,3630.3,3630.2,6.09606004]
[1762747272364,0.002,3630.3,3630.2,6.09606004]
[1762747275116,0.002,3630.3,3630.2,9.22194178]
[1762747275323,0.002,3630.4,3630.3,4.41980928]
[1762747275621,0.002,3630.4,3630.3,10.67435748]
[1762747276394,0.002,3630.4,3630.3,7.54847574]
[1762747276580,0.002,3630.4,3630.3,7.14493667]
[1762747278980,0.002,3630.4,3630.3,10.07189236]
[1762747280339,0.002,3630.4,3630.3,10.20949236]
[1762747280662,0.002,3630.4,3630.3,0.5891]
[1762747280788,0.25871198,3630.4,3630.3,1.0582]
[1762747281224,0.25871198,3630.4,3630.3,1.463704]
[1762747281594,0.25871198,3630.4,3630.3,4.24584321]
[1762747281922,0.002,3630.4,3630.3,5.6445199]
[1762747282123,0.002,3630.4,3630.3,5.90323188]
[1762747282301,0.002,3630.4,3630.3,7.16294388]
[1762747282827,0.002,3630.4,3630.3,6.75940481]
[1762747285520,0.002,3630.4,3630.3,5.88480081]
[1762747285721,2.75466916,3630.2,3630.1,0.001]
[1762747285933,6.38541483,3630.2,3630.1,0.001]
[1762747286115,6.49321483,3630.2,3630.1,0.001]
[1762747289531,3.56625914,3630.2,3630.1,0.001]
[1762747292062,3.67655057,3630.2,3630.1,0.001]
[1762747293571,0.36708141,3630.2,3630.1,0.001]
[1762747293751,0.25678998,3630.2,3630.1,0.9611]
[1762747293962,0.70718998,3630.2,3630.1,0.43015948]
[1762747294129,0.81158998,3630.2,3630.1,0.001]
[1762747294633,0.70718998,3630.2,3630.1,0.001]
[1762747295024,3.46185914,3630.2,3630.1,0.001]
[1762747295222,0.81158998,3630.2,3630.1,0.001]
[1762747295732,0.70718998,3630.2,3630.1,0.001]
[1762747296269,3.46185914,3630.2,3630.1,0.001]
[1762747296621,3.56625914,3630.2,3630.1,0.001]
[1762747300172,5.47897114,3630.2,3630.1,0.001]
[1762747301072,6.03538704,3630.2,3630.1,0.001]
[1762747305477,8.30934273,3630.2,3630.1,0.001]
[1762747305677,8.96234273,3630.2,3630.1,0.001]
[1762747305899,8.30934273,3630.2,3630.1,0.001]
[1762747306201,8.96234273,3630.2,3630.1,0.001]
[1762747307299,2.75497272,3629.8,3629.7,0.001]
[1762747307472,2.81140411,3629.1,3629.0,1e-08]
[1762747307671,8.95929874,3629.1,3629.0,1e-08]
[1762747309203,8.95877762,3629.1,3629.0,1e-08]
[1762747310097,8.95877762,3629.1,3627.5,0.05]
[1762747310098,4.01544392,3628.8,3627.5,0.05]
[1762747310400,8.41310543,3628.8,3627.5,0.05]
[1762747310584,8.87560543,3628.8,3627.5,0.05]
[1762747311115,2.75618764,3628.2,3627.5,0.05]
[1762747311266,6.9433112,3627.6,3627.5,0.05]
[1762747311605,7.93928006,3627.6,3627.5,0.05]
[1762747311802,8.39798006,3627.6,3627.5,0.05]
[1762747312797,7.13826806,3627.6,3627.5,0.05]
[1762747313792,3.01291237,3627.6,3627.5,0.5213]
[1762747314307,0.25626886,3627.6,3627.5,0.5213]
[1762747314483,0.90926886,3627.6,3627.5,0.9877]
[1762747315110,3.66591237,3627.6,3627.5,0.5213]
[1762747315608,0.25626886,3627.6,3627.5,1.0103]
[1762747316912,3.01291237,3627.6,3627.5,1.0103]
[1762747317091,0.25626886,3627.6,3627.5,1.0103]
[1762747317413,3.01291237,3627.6,3627.5,0.5213]
[1762747318010,0.25626886,3627.6,3627.5,0.5213]
[1762747318210,0.25626886,3627.6,3627.5,1.0103]
[1762747318512,3.01291237,3627.6,3627.5,1.0103]
[1762747320285,0.25626886,3627.6,3627.5,1.0103]
[1762747320882,3.01291237,3627.6,3627.5,1.0103]
[1762747321524,3.01291237,3627.6,3627.5,0.05]
[1762747322438,3.01291237,3627.6,3627.5,0.5183]
[1762747322586,3.01291237,3627.6,3627.5,1.0073]
[1762747323495,0.25626886,3627.6,3627.5,1.0073]
[1762747325032,3.01291237,3627.6,3627.5,1.0073]
[1762747325621,0.25626886,3627.6,3627.5,1.0073]
[1762747326020,3.01291237,3627.6,3627.5,1.0073]
[1762747326320,3.01291237,3627.6,3627.5,0.5183]
[1762747327023,3.01291237,3627.6,3627.5,1.0073]
[1762747327688,0.25626886,3627.6,3627.5,1.0073]
[1762747328221,3.01291237,3627.6,3627.5,0.05]
[1762747328440,3.01291237,3627.6,3627.5,0.5183]
[1762747328644,3.01291237,3627.6,3627.5,0.05]
[1762747328943,3.07341237,3627.6,3627.5,0.05]
[1762747329341,3.72641237,3627.6,3627.5,0.05]
[1762747330122,4.21101237,3627.6,3627.5,0.05]
[1762747330341,4.77045885,3627.6,3627.5,0.05]
[1762747330958,4.28585885,3627.6,3627.5,0.05]
[1762747331460,4.28585885,3627.6,3627.5,0.051]
[1762747331810,4.77045885,3627.6,3627.5,0.051]
[1762747334927,2.7569475,3627.2,3627.1,0.011]
[1762747335147,7.16100903,3627.2,3627.1,0.011]
[1762747335448,7.70610903,3627.2,3627.1,0.011]
[1762747336364,8.96582103,3627.2,3627.1,0.011]
[1762747336658,8.96582103,3627.2,3626.7,0.001]
[1762747336659,2.75725157,3626.8,3626.7,0.001]
[1762747336814,4.22596691,3626.8,3626.7,0.001]
[1762747337010,4.77106691,3626.8,3626.7,0.001]
[1762747337865,3.57296691,3626.8,3626.7,0.4693]
[1762747338046,4.02906691,3626.8,3626.7,0.001]
[1762747339064,4.12286691,3626.8,3626.7,0.001]
[1762747341638,4.68206691,3626.8,3626.7,0.001]
[1762747342072,6.03557891,3626.8,3626.7,0.001]
[1762747345273,4.83267891,3626.8,3626.7,0.001]
[1762747345472,0.81571534,3626.8,3626.7,0.9401]
[1762747345660,3.01352043,3626.8,3626.7,0.9401]
[1762747346772,4.0693123,3626.8,3626.7,0.001]
[1762747347177,4.0649123,3626.8,3626.7,0.001]
[1762747347374,4.1260123,3626.8,3626.7,0.001]
[1762747347699,4.12615192,3626.8,3626.7,0.001]
[1762747348611,5.38586392,3626.8,3626.7,0.001]
[1762747349103,5.32476392,3626.8,3626.7,0.001]
[1762747349283,5.38586392,3626.8,3626.7,0.001]
[1762747350388,5.32476392,3626.8,3626.7,0.001]
[1762747353300,5.38586392,3626.8,3626.7,0.001]
[1762747353886,5.32476392,3626.8,3626.7,0.001]
[1762747354210,0.25626886,3626.8,3626.7,0.9401]
[1762747354413,0.25626886,3626.8,3626.7,1.32371902]
[1762747354711,0.25626886,3626.8,3626.7,0.9401]
[1762747356394,3.01352043,3626.8,3626.7,0.001]
[1762747356723,3.15112043,3626.8,3626.7,0.001]
[1762747357085,3.24792043,3626.8,3626.7,0.001]
[1762747357424,3.70767398,3626.8,3626.7,0.001]
[1762747357594,3.15112043,3626.8,3626.7,0.9401]
[1762747357797,3.01352043,3626.8,3626.7,0.9401]
[1762747358093,3.66706991,3626.8,3626.7,0.001]
[1762747358596,4.12536991,3626.8,3626.7,0.001]
[1762747360100,5.38508191,3626.8,3626.7,0.001]
[1762747360483,9.35450062,3626.8,3626.7,0.001]
[1762747361216,9.35450062,3626.8,3626.3,1e-08]
[1762747361217,4.1148677,3626.4,3626.3,1e-08]
[1762747361387,5.58088604,3626.4,3626.3,1e-08]
[1762747361586,4.92788604,3626.4,3626.3,1e-08]
[1762747361823,5.58088604,3626.4,3626.3,1e-08]
[1762747362024,6.03828604,3626.4,3626.3,1e-08]
[1762747363830,5.58088604,3626.4,3626.3,1e-08]
[1762747364005,4.92788604,3626.4,3626.3,1e-08]
[1762747364201,5.58088604,3626.4,3626.3,1e-08]
[1762747364405,5.48328604,3626.4,3626.3,0.46160001]
[1762747364817,5.48328604,3626.4,3626.3,0.93910001]
[1762747365218,3.57057404,3626.4,3626.3,0.93910001]
[1762747366138,3.57057404,3626.4,3626.3,0.46160001]
[1762747366605,3.57057404,3626.4,3626.3,0.93910001]
[1762747367525,3.57057404,3626.4,3626.3,0.46160001]
[1762747369756,3.66737404,3626.4,3626.3,1e-08]
[1762747369954,4.12477404,3626.4,3626.3,1e-08]
[1762747370159,3.66737404,3626.4,3626.3,1e-08]
[1762747371070,4.12477404,3626.4,3626.3,1e-08]
[1762747372865,3.57057404,3626.4,3626.3,0.45660001]
[1762747373159,3.57057404,3626.4,3626.3,1e-08]
[1762747373160,3.65767404,3626.4,3626.3,1e-08]
[1762747373350,4.12467404,3626.4,3626.3,1e-08]
[1762747375839,5.38438604,3626.4,3626.3,1e-08]
[1762747376159,4.91738604,3626.4,3626.3,1e-08]
[1762747376332,5.48328604,3626.4,3626.3,0.47310001]
[1762747376532,5.97328604,3626.4,3626.3,1e-08]
[1762747377329,5.48328604,3626.4,3626.3,0.47310001]
[1762747377530,5.48328604,3626.4,3626.3,1e-08]
[1762747377728,5.48328604,3626.4,3626.3,0.47310001]
[1762747378857,5.48328604,3626.4,3626.3,1e-08]
[1762747379036,4.22357404,3626.4,3626.3,0.47310001]
[1762747379238,3.57057404,3626.4,3626.3,0.96490001]
[1762747380757,0.25626886,3626.4,3626.3,0.96490001]
[1762747380987,0.25626886,3626.4,3626.3,4.76738575]
[1762747381160,0.55703587,3627.3,3626.3,3.64836292]
[1762747381366,2.75902901,3627.1,3627.0,0.4731]
[1762747381573,2.75902901,3627.1,3626.4,0.4918]
[1762747381574,2.75738128,3626.7,3626.4,0.4918]
[1762747381768,2.75738128,3626.7,3626.6,0.4731]
[1762747382059,2.75738128,3626.7,3626.6,0.9649]
[1762747382226,2.75738128,3626.7,3626.6,0.4731]
[1762747382428,2.7575557,3626.4,3626.3,0.49180001]
[1762747382857,2.7575557,3626.4,3626.3,0.96490001]
[1762747384671,2.7575557,3626.4,3626.3,0.47310001]
[1762747384899,2.8325557,3626.4,3626.3,1e-08]
[1762747385569,3.38935033,3626.4,3626.3,1e-08]
[1762747386486,3.39135033,3626.4,3626.3,1e-08]
[1762747387503,3.31635033,3626.4,3626.3,1e-08]
[1762747387715,3.39135033,3626.4,3626.3,1e-08]
[1762747388513,3.86455033,3626.4,3626.3,1e-08]
[1762747389084,3.39135033,3626.4,3626.3,1e-08]
[1762747390384,3.86455033,3626.4,3626.3,1e-08]
[1762747390588,5.12426233,3626.4,3626.3,1e-08]
[1762747390786,5.12651545,3626.4,3626.3,1e-08]
[1762747393347,5.38347671,3626.4,3626.3,1e-08]
[1762747394142,4.91027671,3626.4,3626.3,1e-08]
[1762747394627,5.56327671,3626.4,3626.3,1e-08]
[1762747395599,2.07772101,3626.4,3626.3,0.47310001]
[1762747395804,0.81800901,3626.4,3626.3,0.96490001]
[1762747396005,0.25896126,3626.4,3626.3,1.77991807]
[1762747396204,0.25896126,3626.4,3626.3,1.39837068]
[1762747396801,0.25896126,3626.4,3626.3,4.15600242]
[1762747397000,0.25896126,3626.4,3626.3,1.39837068]
[1762747397423,0.25896126,3626.4,3626.3,4.15600242]
[1762747397907,0.25896126,3626.4,3626.3,1.39837068]
[1762747402300,0.25896126,3626.4,3626.3,5.24837068]
[1762747405927,0.25896126,3626.4,3626.3,5.22247068]
[1762747406245,3.01651696,3626.4,3626.3,5.22247068]
[1762747406929,3.01651696,3626.4,3626.3,4.75657068]
[1762747407131,3.01651696,3626.4,3626.3,5.22247068]
[1762747408347,0.25896126,3626.4,3626.3,1.37247068]
[1762747408949,3.01651696,3626.4,3626.3,1.37247068]
[1762747410733,0.25896126,3626.4,3626.3,1.37247068]
[1762747411139,3.01651696,3626.4,3626.3,1.37247068]
[1762747411345,3.01651696,3626.4,3626.3,0.93900001]
[1762747411766,0.25896126,3626.4,3626.3,0.93900001]
[1762747412664,3.01651696,3626.4,3626.3,0.93900001]
[1762747413257,0.25896126,3626.4,3626.3,0.93900001]
[1762747413565,0.25896126,3626.4,3626.3,4.59816266]
[1762747413769,0.25896126,3626.4,3626.3,5.73901078]
[1762747413971,0.25896126,3626.4,3626.3,2.98137904]
[1762747414144,0.25896126,3626.4,3626.3,9.23058387]
[1762747414542,0.25896126,3626.4,3626.3,6.47295213]
[1762747414768,0.25896126,3626.4,3626.3,5.33210401]
[1762747415333,0.25896126,3626.4,3626.3,8.08973575]
[1762747415534,0.25896126,3626.4,3626.3,5.33210401]
[1762747416068,0.25896126,3626.4,3626.3,4.92660001]
[1762747418238,0.25896126,3626.4,3626.3,8.11731206]
[1762747418572,0.25896126,3626.4,3626.3,9.19749879]
[1762747419158,0.25896126,3626.4,3626.3,10.45721079]
[1762747419369,0.25896126,3626.4,3626.3,10.31961079]
[1762747420372,0.002,3626.8,3626.7,4.42254359]
[1762747420548,0.002,3626.8,3626.7,4.89954359]
[1762747420749,0.002,3626.8,3626.7,6.17772946]
[1762747422896,0.002,3626.8,3626.7,10.02772946]
[1762747423252,0.002,3626.8,3626.7,0.81228587]
[1762747423450,2.75925157,3626.8,3626.7,0.477]
[1762747424357,0.002,3626.8,3626.7,0.477]
[1762747424774,0.002,3626.8,3626.7,1.348404]
[1762747424971,0.002,3626.8,3626.7,4.10573159]
[1762747425289,0.002,3626.8,3626.7,4.79204658]
[1762747425854,0.002,3626.8,3626.7,6.05175858]
[1762747427604,0.002,3626.8,3626.7,6.44308549]
[1762747427776,0.002,3626.8,3626.7,6.05175858]
[1762747429283,0.002,3626.8,3626.7,6.18935858]
[1762747432895,0.002,3627.1,3626.7,6.05175858]
[1762747433109,0.002,3627.1,3627.0,4.88601553]
[1762747433290,0.002,3627.1,3627.0,5.51291553]
[1762747434417,0.002,3627.1,3627.0,2.755816]